bitfinex/quotes_BTCUSD_20240611
["timestamp","ask_amount","ask_price","bid_price","bid_amount"]
[1718117735019,0.82181104,66958.0,66957.0,0.49]
[1718117735508,0.71385674,66958.0,66957.0,0.49]
[1718117735724,0.78455674,66958.0,66957.0,0.49]
[1718117735940,0.82188908,66958.0,66957.0,0.49]
[1718117736190,0.82194493,66958.0,66957.0,0.49]
[1718117736631,0.75124493,66958.0,66957.0,0.49]
[1718117736856,0.82194493,66958.0,66957.0,0.49]
[1718117737294,0.91713721,66958.0,66957.0,0.49]
[1718117737523,0.82194493,66958.0,66957.0,0.49]
[1718117738379,0.91736689,66958.0,66957.0,0.49]
[1718117739256,0.98587734,66958.0,66957.0,0.49]
[1718117739668,0.98603052,66958.0,66957.0,0.49]
[1718117740295,0.91533052,66958.0,66957.0,0.49]
[1718117740506,1.05965045,66958.0,66957.0,0.49]
[1718117740714,1.13035045,66958.0,66957.0,0.49]
[1718117741362,1.18603052,66958.0,66957.0,0.49]
[1718117741733,0.98603052,66958.0,66957.0,0.49]
[1718117741938,0.98309,66958.0,66957.0,0.49]
[1718117743015,1.30609,66958.0,66957.0,0.49]
[1718117743252,2.484983,66958.0,66957.0,0.49]
[1718117743432,2.92799693,66958.0,66957.0,0.49]
[1718117743681,3.18509693,66958.0,66948.0,4e-05]
[1718117743836,1.50096387,66949.0,66948.0,4e-05]
[1718117744050,1.78495554,66949.0,66948.0,4e-05]
[1718117744280,2.0825357,66949.0,66948.0,4e-05]
[1718117744479,2.0825357,66949.0,66932.0,0.009416]
[1718117744480,0.38058598,66933.0,66932.0,0.009416]
[1718117744705,0.59560591,66933.0,66932.0,0.009416]
[1718117745083,0.61132455,66933.0,66932.0,0.009416]
[1718117745797,1.01132455,66933.0,66932.0,0.009416]
[1718117746034,1.674929,66933.0,66932.0,0.009416]
[1718117746271,1.74065303,66933.0,66932.0,0.009416]
[1718117746489,1.87556839,66933.0,66932.0,0.009416]
[1718117746900,1.50606239,66933.0,66932.0,0.009416]
[1718117747136,1.68306239,66933.0,66932.0,0.009416]
[1718117747601,1.48306239,66933.0,66932.0,0.009416]
[1718117748069,1.52166584,66933.0,66932.0,0.009416]
[1718117748271,0.880228,66933.0,66932.0,0.009416]
[1718117748481,0.65462455,66933.0,66932.0,0.009416]
[1718117748681,0.64862455,66933.0,66932.0,0.009416]
[1718117748914,0.63462455,66933.0,66932.0,0.009416]
[1718117749128,0.63462455,66933.0,66932.0,0.238816]
[1718117749359,0.64862455,66933.0,66932.0,0.238816]
[1718117749572,0.63462455,66933.0,66932.0,0.238816]
[1718117750046,0.22477944,66933.0,66932.0,0.238816]
[1718117750256,0.22690162,66933.0,66932.0,0.238816]
[1718117750715,0.37630462,66933.0,66932.0,0.238816]
[1718117751183,0.39030462,66933.0,66932.0,0.238816]
[1718117751812,0.40430462,66933.0,66932.0,0.238816]
[1718117752031,0.40430462,66933.0,66932.0,0.088516]
[1718117752249,0.40430462,66933.0,66932.0,0.009416]
[1718117752250,0.41830462,66933.0,66932.0,0.009416]
[1718117753079,0.40430462,66933.0,66932.0,0.009416]
[1718117753303,0.41430462,66933.0,66932.0,0.009416]
[1718117755171,0.41218244,66933.0,66932.0,0.009416]
[1718117757047,0.26277944,66933.0,66932.0,0.244316]
[1718117757272,0.08347413,66933.0,66932.0,0.244316]
[1718117758230,0.05547413,66933.0,66932.0,0.244316]
[1718117758468,0.04547413,66933.0,66932.0,0.244316]
[1718117758687,0.23477944,66933.0,66932.0,0.244316]
[1718117758902,0.22477944,66933.0,66932.0,0.244316]
[1718117759971,0.04547413,66933.0,66932.0,0.244316]
[1718117760784,0.04947413,66933.0,66932.0,0.244316]
[1718117761430,0.04547413,66933.0,66932.0,0.244316]
[1718117761633,0.01571864,66933.0,66932.0,0.26219382]
[1718117762036,0.01571864,66933.0,66932.0,0.41159882]
[1718117762697,0.02975549,66934.0,66933.0,0.26557782]
[1718117764378,0.02975549,66934.0,66933.0,0.2477]
[1718117765903,0.02975549,66934.0,66933.0,0.397103]
[1718117766106,0.2090608,66934.0,66933.0,0.2477]
[1718117766313,0.02975549,66933.0,66932.0,0.009416]
[1718117766471,0.21118298,66933.0,66932.0,0.009416]
[1718117766672,0.22676096,66933.0,66932.0,0.009416]
[1718117767308,0.37616396,66933.0,66932.0,0.009416]
[1718117767509,0.39616396,66933.0,66932.0,0.009416]
[1718117767711,0.37616396,66933.0,66932.0,0.009416]
[1718117768273,0.39616396,66933.0,66932.0,0.009416]
[1718117768700,0.37616396,66933.0,66932.0,0.009416]
[1718117772022,0.38116396,66933.0,66932.0,0.009416]
[1718117772613,0.37616396,66933.0,66932.0,0.009416]
[1718117773005,0.38116396,66933.0,66932.0,0.009416]
[1718117773445,0.05033347,66933.0,66932.0,0.009416]
[1718117773643,0.05033347,66933.0,66932.0,0.252616]
[1718117773846,0.02057798,66933.0,66932.0,0.402021]
[1718117774057,0.02057798,66933.0,66932.0,0.41989882]
[1718117774260,0.005,66933.0,66932.0,0.41989882]
[1718117774881,0.03105149,66933.0,66932.0,0.41989882]
[1718117775081,0.005,66933.0,66932.0,0.41989882]
[1718117775310,0.02605149,66933.0,66932.0,0.402021]
[1718117775558,0.02975549,66933.0,66932.0,0.252616]
[1718117775709,0.05680698,66933.0,66932.0,0.252616]
[1718117776130,0.23611229,66933.0,66932.0,0.252616]
[1718117777445,0.23823447,66933.0,66932.0,0.252616]
[1718117777639,0.23611229,66933.0,66932.0,0.252616]
[1718117779378,0.05680698,66933.0,66932.0,0.252616]
[1718117779987,0.05680698,66933.0,66932.0,0.27049382]
[1718117780292,0.05680698,66933.0,66932.0,0.2884116]
[1718117780465,0.05680698,66933.0,66932.0,0.27053378]
[1718117780672,0.05680698,66933.0,66932.0,0.2884116]
[1718117781312,0.05680698,66933.0,66932.0,0.27053378]
[1718117782123,0.05680698,66933.0,66932.0,0.2884116]
[1718117782730,0.02705149,66933.0,66932.0,0.2884116]
[1718117782959,0.02705149,66933.0,66932.0,0.4378166]
[1718117783341,0.001,66933.0,66932.0,0.4378166]
[1718117784594,0.02708211,66933.0,66932.0,0.4378166]
[1718117790182,0.001,66933.0,66932.0,0.4378166]
[1718117791329,0.02708211,66933.0,66932.0,0.4378166]
[1718117791536,0.001,66933.0,66932.0,0.4378166]
[1718117791753,0.02708211,66933.0,66932.0,0.4378166]
[1718117791925,0.001,66933.0,66932.0,0.4378166]
[1718117792100,0.02708211,66933.0,66932.0,0.4378166]
[1718117792327,0.001,66933.0,66932.0,0.4378166]
[1718117792522,0.02708211,66933.0,66932.0,0.4378166]
[1718117792720,0.001,66933.0,66932.0,0.4378166]
[1718117792904,0.02708211,66933.0,66932.0,0.4378166]
[1718117793099,0.001,66933.0,66932.0,0.5085166]
[1718117793631,0.02708211,66933.0,66932.0,0.5085166]
[1718117797037,0.02708211,66933.0,66932.0,0.41993878]
[1718117797451,0.02708211,66933.0,66932.0,0.17673878]
[1718117797659,0.20638742,66933.0,66932.0,0.17673878]
[1718117797872,0.02708211,66933.0,66932.0,0.17673878]
[1718117798515,0.20638742,66933.0,66932.0,0.17673878]
[1718117806413,0.02708211,66933.0,66932.0,0.2653166]
[1718117808427,0.02708211,66933.0,66932.0,0.4966166]
[1718117810249,0.02708211,66933.0,66932.0,0.80655191]
[1718117810449,0.02708211,66933.0,66932.0,0.4966166]
[1718117810835,0.001,66933.0,66932.0,0.4966166]
[1718117811555,0.001,66933.0,66932.0,0.009416]
[1718117811556,0.21218298,66933.0,66932.0,0.009416]
[1718117811755,0.44478298,66933.0,66932.0,0.009416]
[1718117811956,0.46319178,66933.0,66932.0,0.009416]
[1718117812141,0.2361666,66933.0,66932.0,0.009416]
[1718117812572,0.2351666,66933.0,66932.0,0.009416]
[1718117813401,0.23828878,66933.0,66932.0,0.010416]
[1718117815193,0.23728878,66933.0,66932.0,0.009416]
[1718117815844,0.23728878,66933.0,66932.0,0.010416]
[1718117819655,0.2351666,66933.0,66932.0,0.010416]
[1718117820502,0.23728878,66933.0,66932.0,0.010416]
[1718117822141,0.55468878,66933.0,66932.0,0.010416]
[1718117823208,0.71900871,66933.0,66932.0,0.009416]
[1718117823445,0.86841171,66933.0,66932.0,0.009416]
[1718117823588,0.95986082,66933.0,66932.0,0.010416]
[1718117823790,0.95986082,66933.0,66932.0,0.009416]
[1718117823791,1.70789029,66933.0,66932.0,0.009416]
[1718117823990,1.91462812,66933.0,66932.0,0.009416]
[1718117824290,2.06352716,66933.0,66932.0,0.009416]
[1718117824519,2.12268835,66933.0,66932.0,0.009416]
[1718117824704,2.12168835,66933.0,66932.0,0.009416]
[1718117824856,2.12768835,66933.0,66932.0,0.009416]
[1718117825239,2.18030394,66933.0,66932.0,0.009416]
[1718117825667,2.21690739,66933.0,66932.0,0.009416]
[1718117826152,2.10752925,66933.0,66932.0,0.009416]
[1718117826320,2.1968995,66933.0,66932.0,0.009416]
[1718117826575,2.1978995,66933.0,66932.0,0.009416]
[1718117826923,2.1918995,66933.0,66932.0,0.009416]
[1718117827094,2.2058995,66933.0,66932.0,0.009416]
[1718117827303,2.11552925,66933.0,66932.0,0.009416]
[1718117827733,2.22182925,66933.0,66932.0,0.009416]
[1718117827937,2.23582925,66933.0,66932.0,0.009416]
[1718117828367,2.28907395,66933.0,66932.0,0.009416]
[1718117828781,2.30307395,66933.0,66932.0,0.009416]
[1718117829196,2.23607428,66933.0,66932.0,0.009416]
[1718117829402,3.17409528,66933.0,66932.0,0.009416]
[1718117829671,3.17440777,66933.0,66932.0,0.009416]
[1718117829878,3.47321377,66933.0,66932.0,0.009416]
[1718117830088,3.45921377,66933.0,66932.0,0.009416]
[1718117830300,3.57080827,66933.0,66932.0,0.009416]
[1718117830639,3.58480827,66933.0,66932.0,0.009416]
[1718117831069,3.71390827,66933.0,66932.0,0.009416]
[1718117831288,1.60964298,66929.0,66928.0,0.009416]
[1718117831490,2.29003937,66929.0,66928.0,0.009416]
[1718117831698,2.35247633,66929.0,66928.0,0.009416]
[1718117831910,2.38844949,66929.0,66928.0,0.009416]
[1718117832340,1.31499798,66917.0,66916.0,0.009416]
[1718117832545,1.83367009,66917.0,66916.0,0.009416]
[1718117832760,2.06707012,66917.0,66916.0,0.009416]
[1718117832974,3.49347963,66917.0,66916.0,0.009416]
[1718117834054,3.23245463,66917.0,66916.0,0.009416]
[1718117834270,3.14645463,66917.0,66916.0,0.009416]
[1718117834477,3.24645463,66917.0,66916.0,0.009416]
[1718117835370,3.24645463,66917.0,66881.0,0.149518]
[1718117835371,0.38065698,66901.0,66881.0,0.149518]
[1718117835590,0.38065698,66901.0,66894.0,0.43295979]
[1718117835591,0.52497691,66901.0,66894.0,0.43295979]
[1718117835808,0.52497691,66901.0,66885.0,0.1549]
[1718117836025,0.57381042,66901.0,66885.0,0.1549]
[1718117836468,0.95401042,66901.0,66885.0,0.1549]
[1718117836681,1.73541383,66901.0,66885.0,0.1549]
[1718117836897,1.79064676,66901.0,66885.0,0.1549]
[1718117837106,1.67487176,66901.0,66886.0,0.1652]
[1718117837548,1.67187176,66901.0,66885.0,0.0779]
[1718117837773,1.67587176,66901.0,66885.0,0.0779]
[1718117838196,2.21412421,66901.0,66881.0,0.1557]
[1718117838400,2.21412421,66901.0,66878.0,0.0787]
[1718117838401,2.21012421,66901.0,66878.0,0.0787]
[1718117838608,2.21912421,66901.0,66878.0,0.0787]
[1718117838820,2.29912421,66901.0,66877.0,0.1557]
[1718117839048,2.29012421,66901.0,66877.0,0.1557]
[1718117839263,2.30412421,66901.0,66877.0,0.1557]
[1718117839469,2.10188621,66901.0,66877.0,0.1557]
[1718117839669,2.24498621,66901.0,66877.0,0.1557]
[1718117839880,4.27961021,66901.0,66877.0,0.1557]
[1718117840087,4.29761021,66901.0,66877.0,0.1557]
[1718117840729,4.21312121,66901.0,66877.0,0.1557]
[1718117840935,4.25025417,66901.0,66877.0,0.1557]
[1718117841344,4.03612121,66901.0,66877.0,0.1557]
[1718117841833,4.03212121,66901.0,66877.0,0.1557]
[1718117842463,4.21111021,66901.0,66877.0,0.1557]
[1718117842686,4.22879889,66901.0,66877.0,0.1557]
[1718117842899,4.01038089,66901.0,66882.0,0.081]
[1718117843108,3.99638089,66901.0,66882.0,0.081]
[1718117843311,4.01038089,66901.0,66882.0,0.081]
[1718117843956,2.93001196,66901.0,66887.0,0.1594]
[1718117844119,1.21030596,66901.0,66887.0,0.1594]
[1718117844474,1.71838896,66901.0,66887.0,0.1594]
[1718117844676,1.70438896,66901.0,66887.0,0.1594]
[1718117844876,1.69038896,66901.0,66887.0,0.1594]
[1718117845080,1.84870889,66901.0,66887.0,0.1594]
[1718117845275,1.88570889,66901.0,66887.0,0.1594]
[1718117845506,1.87170889,66901.0,66887.0,0.1594]
[1718117846189,0.99930596,66901.0,66887.0,0.1594]
[1718117846342,0.68411387,66901.0,66900.0,0.23614]
[1718117846553,0.54481042,66901.0,66900.0,0.23614]
[1718117847361,0.61697038,66901.0,66900.0,0.00104]
[1718117847723,0.24889431,66901.0,66900.0,0.00104]
[1718117847921,0.26289431,66901.0,66900.0,0.23724]
[1718117848429,0.23489431,66901.0,66900.0,0.23724]
[1718117848631,0.055589,66901.0,66900.0,0.23724]
[1718117848808,0.070589,66901.0,66900.0,0.23724]
[1718117849315,0.055589,66901.0,66900.0,0.23724]
[1718117849543,0.055589,66901.0,66900.0,0.25511782]
[1718117850179,0.055589,66901.0,66900.0,0.23724]
[1718117850384,0.23589431,66901.0,66900.0,0.23724]
[1718117850585,0.056589,66901.0,66900.0,0.23724]
[1718117851386,0.056589,66901.0,66900.0,0.25511782]
[1718117852027,0.02975549,66901.0,66900.0,0.25511782]
[1718117852239,0.05537717,66901.0,66900.0,0.25511782]
[1718117853273,0.05937717,66901.0,66900.0,0.25511782]
[1718117853652,0.05937717,66901.0,66900.0,0.23724]
[1718117854082,0.23868248,66901.0,66900.0,0.23724]
[1718117854294,0.39027866,66901.0,66900.0,0.23724]
[1718117854506,0.43209044,66901.0,66900.0,0.23724]
[1718117855760,0.42896826,66901.0,66900.0,0.23724]
[1718117856598,0.43109044,66901.0,66900.0,0.23724]
[1718117858054,0.38927866,66901.0,66900.0,0.23724]
[1718117860553,0.38927866,66901.0,66900.0,0.15874]
[1718117861457,0.57541037,66901.0,66900.0,0.00104]
[1718117861682,0.67141037,66901.0,66900.0,0.00104]
[1718117861897,0.83611037,66901.0,66900.0,0.00104]
[1718117862107,1.73505937,66901.0,66900.0,0.00104]
[1718117862318,2.01580446,66901.0,66900.0,0.00104]
[1718117862528,2.16292362,66901.0,66900.0,0.00104]
[1718117862741,4.87002556,66901.0,66900.0,0.00104]
[1718117862943,4.90298214,66901.0,66900.0,0.00104]
[1718117863366,5.06008214,66901.0,66900.0,0.00104]
[1718117863581,5.02712556,66901.0,66900.0,0.00104]
[1718117863807,5.03812556,66901.0,66900.0,0.00104]
[1718117864013,4.88912256,66901.0,66900.0,0.00104]
[1718117864256,4.58974756,66901.0,66900.0,0.00104]
[1718117864675,4.68481772,66901.0,66900.0,0.00104]
[1718117865098,4.66681772,66901.0,66900.0,0.00104]
[1718117865308,4.62426849,66901.0,66900.0,0.00104]
[1718117865552,4.63826849,66901.0,66900.0,0.00104]
[1718117866620,4.16455449,66901.0,66900.0,0.00104]
[1718117866796,4.16541449,66901.0,66900.0,0.00104]
[1718117867205,4.15141449,66901.0,66900.0,0.00104]
[1718117867398,4.55141449,66901.0,66900.0,0.00104]
[1718117867737,4.16541449,66901.0,66900.0,0.00104]
[1718117867937,4.18352466,66901.0,66900.0,0.00104]
[1718117870445,4.02905266,66901.0,66900.0,0.00104]
[1718117870641,3.54957866,66901.0,66900.0,0.00104]
[1718117870855,3.55917566,66901.0,66900.0,0.00104]
[1718117871165,3.07175573,66901.0,66900.0,0.00104]
[1718117871362,1.99882973,66901.0,66900.0,0.00104]
[1718117871782,2.41011373,66901.0,66900.0,0.00104]
[1718117872035,2.29294073,66901.0,66900.0,0.00104]
[1718117873034,1.75329173,66901.0,66900.0,0.00104]
[1718117873262,1.89814645,66901.0,66900.0,0.00104]
[1718117873461,2.09814645,66901.0,66900.0,0.00104]
[1718117873632,1.95796645,66901.0,66900.0,0.00104]
[1718117873834,2.15796645,66901.0,66900.0,0.00104]
[1718117874037,1.95796645,66901.0,66900.0,0.00104]
[1718117875130,1.21590408,66901.0,66900.0,0.00104]
[1718117875341,0.65584491,66901.0,66900.0,0.00104]
[1718117876440,0.67584491,66901.0,66900.0,0.00104]
[1718117877195,0.76184491,66901.0,66900.0,0.00104]
[1718117877398,0.77584491,66901.0,66900.0,0.00104]
[1718117877599,0.76184491,66901.0,66900.0,0.00104]
[1718117877973,0.75584491,66901.0,66900.0,0.00104]
[1718117879076,0.77584491,66901.0,66900.0,0.00104]
[1718117879454,0.79765669,66901.0,66900.0,0.00104]
[1718117879706,0.8977549,66901.0,66900.0,0.00104]
[1718117879929,0.9077549,66901.0,66900.0,0.00104]
[1718117880356,0.8877549,66901.0,66900.0,0.00104]
[1718117880553,0.9077549,66901.0,66900.0,0.00104]
[1718117881645,0.8877549,66901.0,66900.0,0.00104]
[1718117881855,0.75586946,66901.0,66900.0,0.00104]
[1718117882269,0.83760955,66901.0,66900.0,0.00104]
[1718117882503,0.80001868,66901.0,66900.0,0.00104]
[1718117882717,0.75583962,66901.0,66900.0,0.00104]
[1718117884282,0.83895307,66901.0,66900.0,0.00104]
[1718117887606,0.85895307,66901.0,66900.0,0.00104]
[1718117888656,0.85757825,66901.0,66900.0,0.00104]
[1718117889704,0.84757825,66901.0,66900.0,0.00104]
[1718117890846,0.80999,66901.0,66900.0,0.00104]
[1718117891054,0.84745271,66901.0,66900.0,0.00104]
[1718117891289,1.14640171,66901.0,66900.0,0.00104]
[1718117893946,1.58360171,66901.0,66900.0,0.00104]
[1718117894146,1.72792164,66901.0,66900.0,0.00104]
[1718117894405,1.34640171,66901.0,66900.0,0.00104]
[1718117894619,2.80026922,66901.0,66900.0,0.00104]
[1718117894881,2.84208593,66901.0,66900.0,0.00104]
[1718117895070,2.8565842,66901.0,66900.0,0.00104]
[1718117895288,2.94574123,66901.0,66900.0,0.00104]
[1718117895430,3.09006116,66901.0,66900.0,0.00104]
[1718117896065,3.39985313,66901.0,66900.0,0.00104]
[1718117896335,3.56788939,66901.0,66900.0,0.00104]
[1718117896493,4.33788939,66901.0,66900.0,0.00104]
[1718117896973,4.45576557,66901.0,66900.0,0.00104]
[1718117898174,4.45547062,66901.0,66900.0,0.00104]
[1718117899184,4.45547062,66901.0,66900.0,0.001986]
[1718117899387,4.33759444,66901.0,66900.0,0.001986]
[1718117900277,4.33181602,66901.0,66900.0,0.001986]
[1718117900484,4.36181602,66901.0,66900.0,0.001986]
[1718117901344,4.51891602,66901.0,66900.0,0.001986]
[1718117901562,4.65273326,66901.0,66900.0,0.001986]
[1718117901741,4.76774083,66901.0,66900.0,0.001986]
[1718117903073,4.76758457,66901.0,66900.0,0.001986]
[1718117903273,4.79434611,66901.0,66900.0,0.001986]
[1718117903484,4.86144381,66901.0,66900.0,0.001986]
[1718117904380,4.57052657,66901.0,66867.0,0.00787782]
[1718117904648,0.01875549,66869.0,66868.0,0.00598065]
[1718117904849,0.01875549,66869.0,66863.0,0.149558]
[1718117904850,0.1980608,66869.0,66863.0,0.149558]
[1718117905059,0.04418905,66869.0,66864.0,0.243]
[1718117905473,0.04418905,66869.0,66863.0,0.149558]
[1718117905474,0.04418905,66869.0,66866.0,0.1666]
[1718117905697,0.04418905,66869.0,66867.0,0.0764]
[1718117905985,0.04418905,66869.0,66867.0,0.001]
[1718117905986,0.01875549,66868.0,66867.0,0.001]
[1718117906270,0.1980608,66868.0,66867.0,0.001]
[1718117906525,0.1980608,66868.0,66858.0,0.16740005]
[1718117906526,0.17930531,66867.0,66858.0,0.16740005]
[1718117906781,0.17930531,66867.0,66866.0,0.1572]
[1718117907020,0.17930531,66867.0,66866.0,0.2366]
[1718117907300,0.04418905,66867.0,66866.0,0.2309]
[1718117907845,0.22349436,66867.0,66866.0,0.2309]
[1718117908128,0.04418905,66867.0,66866.0,0.2309]
[1718117908427,0.22349436,66867.0,66866.0,0.2309]
[1718117909965,0.22349436,66867.0,66866.0,0.2319]
[1718117910247,0.1980608,66867.0,66866.0,0.2319]
[1718117910469,0.01875549,66867.0,66866.0,0.2319]
[1718117910686,0.02543356,66867.0,66866.0,0.2319]
[1718117910915,0.01875549,66870.0,66868.0,0.0759]
[1718117911122,0.01875549,66870.0,66869.0,0.2331]
[1718117912211,0.0441576,66870.0,66869.0,0.2331]
[1718117912418,0.0441576,66870.0,66864.0,0.149557]
[1718117912419,0.1,66870.0,66853.0,0.07626221]
[1718117912632,0.12540211,66870.0,66861.0,0.149563]
[1718117912853,0.12540211,66870.0,66863.0,0.149559]
[1718117913539,0.12740211,66870.0,66863.0,0.149559]
[1718117914019,0.12540211,66870.0,66864.0,0.149557]
[1718117914870,0.12640211,66870.0,66864.0,0.149557]
[1718117915501,0.12640211,66870.0,66867.0,0.152]
[1718117915709,0.12640211,66870.0,66869.0,0.152]
[1718117915936,0.12640211,66870.0,66869.0,0.2271]
[1718117917061,0.12540211,66870.0,66869.0,0.2271]
[1718117918002,0.12840211,66870.0,66869.0,0.2271]
[1718117919334,0.40056207,66870.0,66869.0,0.2271]
[1718117920414,0.39756207,66870.0,66869.0,0.2271]
[1718117921259,0.12540211,66870.0,66869.0,0.2271]
[1718117921919,0.02540211,66870.0,66869.0,0.2271]
[1718117923844,0.02540211,66870.0,66869.0,0.376646]
[1718117924306,0.02540211,66870.0,66869.0,0.2271]
[1718117927122,0.02540211,66870.0,66856.0,0.299149]
[1718117927332,0.02540211,66870.0,66867.0,0.149548]
[1718117929052,0.02540211,66870.0,66868.0,0.15552788]
[1718117929311,0.2,66880.0,66868.0,0.15030081]
[1718117929312,0.1,66880.0,66868.0,0.15030081]
[1718117929528,0.1,66880.0,66875.0,0.149532]
[1718117929959,0.07215996,66879.0,66871.0,0.14954]
[1718117930175,0.07215996,66879.0,66873.0,0.1525]
[1718117930389,0.07215996,66879.0,66873.0,0.29681993]
[1718117930864,0.07215996,66879.0,66874.0,0.389134]
[1718117931087,0.1,66880.0,66876.0,0.0771]
[1718117931297,0.1,66880.0,66877.0,0.1662]
[1718117932187,0.07215996,66879.0,66877.0,0.1662]
[1718117932869,0.07215996,66879.0,66877.0,0.1682]
[1718117934678,0.07215996,66879.0,66877.0,0.1662]
[1718117935121,0.100946,66880.0,66878.0,0.0762]
[1718117935122,0.000946,66880.0,66878.0,0.0762]
[1718117935360,0.000946,66880.0,66877.0,0.14431993]
[1718117935361,0.000946,66880.0,66879.0,0.17027994]
[1718117935589,0.000946,66880.0,66879.0,0.54312287]
[1718117937128,0.000946,66880.0,66879.0,0.72012287]
[1718117937770,0.000946,66880.0,66879.0,0.76489888]
[1718117938391,0.001946,66880.0,66879.0,0.77089888]
[1718117938604,0.000946,66880.0,66879.0,0.72012287]
[1718117938820,0.000946,66880.0,66879.0,0.76489888]
[1718117939050,0.001946,66880.0,66879.0,0.77189888]
[1718117939261,0.001946,66880.0,66879.0,0.54414293]
[1718117940837,0.001946,66880.0,66879.0,0.399823]
[1718117941532,0.02749931,66880.0,66879.0,0.399823]
[1718117941784,0.001946,66880.0,66879.0,0.399823]
[1718117942209,0.001946,66880.0,66879.0,0.007]
[1718117942420,0.02749931,66880.0,66879.0,0.007]
[1718117942633,0.09965927,66880.0,66879.0,0.007]
[1718117945242,0.10065927,66880.0,66879.0,0.011]
[1718117945459,0.10065927,66880.0,66877.0,0.01809896]
[1718117945460,0.09865927,66880.0,66877.0,0.01809896]
[1718117945671,0.09865927,66880.0,66879.0,0.004]
[1718117946977,0.09865927,66880.0,66876.0,0.16715927]
[1718117948534,0.09965927,66880.0,66877.0,0.005]
[1718117949374,0.09965927,66880.0,66876.0,0.16715927]
[1718117949375,0.02649931,66880.0,66876.0,0.16715927]
[1718117949727,0.02749931,66880.0,66876.0,0.02262927]
[1718117950111,0.02649931,66880.0,66876.0,0.01762927]
[1718117950309,0.02649931,66880.0,66877.0,0.005]
[1718117950512,0.02749931,66880.0,66877.0,0.005]
[1718117952674,0.02649931,66880.0,66875.0,0.149532]
[1718117953140,0.02749931,66880.0,66876.0,0.005]
[1718117953457,0.02649931,66880.0,66875.0,0.149532]
[1718117953672,0.02649931,66880.0,66876.0,0.149529]
[1718117953871,0.02749931,66880.0,66877.0,0.005]
[1718117954099,0.02649931,66880.0,66876.0,0.149529]
[1718117954472,0.02749931,66880.0,66876.0,0.154529]
[1718117954672,0.02749931,66880.0,66878.0,0.0813]
[1718117955223,0.2,66878.0,66877.0,0.149527]
[1718117955434,0.5342,66877.0,66876.0,0.005]
[1718117955856,0.55974089,66877.0,66876.0,0.005]
[1718117956547,0.2,66876.0,66870.0,0.16718059]
[1718117957181,0.02554089,66875.0,66870.0,0.16718059]
[1718117957800,0.2,66873.0,66870.0,0.16718059]
[1718117958206,0.2,66874.0,66870.0,0.16718059]
[1718117958415,0.02554089,66872.0,66870.0,0.16718059]
[1718117958835,0.02554089,66871.0,66870.0,0.16718059]
[1718117959448,0.1,66874.0,66870.0,0.16718059]
[1718117959662,0.100946,66880.0,66878.0,0.149524]
[1718117961644,0.101946,66880.0,66878.0,0.154524]
[1718117961847,0.101946,66880.0,66878.0,0.149524]
[1718117961848,0.100946,66880.0,66878.0,0.149524]
[1718117962228,0.100946,66880.0,66874.0,0.149533]
[1718117962473,0.17310596,66880.0,66874.0,0.149533]
[1718117962894,0.000946,66880.0,66875.0,0.39870025]
[1718117963117,0.000946,66880.0,66879.0,0.149523]
[1718117963325,0.001946,66880.0,66879.0,0.45994293]
[1718117963589,0.000946,66880.0,66879.0,0.45994293]
[1718117963799,0.000946,66880.0,66879.0,0.53834293]
[1718117964007,0.001946,66880.0,66879.0,0.53834293]
[1718117964427,0.000946,66880.0,66879.0,0.53834293]
[1718117964636,0.000946,66880.0,66879.0,0.68763316]
[1718117964859,0.001946,66880.0,66879.0,0.69263316]
[1718117965280,0.001946,66880.0,66879.0,0.69180797]
[1718117965855,0.001946,66880.0,66879.0,0.73654324]
[1718117966284,0.001946,66880.0,66879.0,0.69180797]
[1718117966708,0.001946,66880.0,66879.0,0.73654324]
[1718117967491,0.001946,66880.0,66879.0,0.69180797]
[1718117967943,0.001946,66880.0,66879.0,0.3477517]
[1718117968307,0.02756354,66880.0,66879.0,0.3477517]
[1718117968546,0.001946,66880.0,66879.0,0.30298804]
[1718117968749,0.11046354,66880.0,66879.0,0.30298804]
[1718117968954,0.15700596,66880.0,66879.0,0.30298804]
[1718117969122,0.4826235,66880.0,66879.0,0.15346504]
[1718117969505,0.6457235,66880.0,66879.0,0.15346504]
[1718117971198,0.6657235,66880.0,66879.0,0.15346504]
[1718117971851,0.6457235,66880.0,66879.0,0.15346504]
[1718117972257,0.6447235,66880.0,66879.0,0.14846504]
[1718117972462,0.6457235,66880.0,66879.0,0.15346504]
[1718117973557,0.6447235,66880.0,66879.0,0.14846504]
[1718117974169,0.6447235,66880.0,66879.0,0.15146504]
[1718117975573,0.4447235,66880.0,66879.0,0.15146504]
[1718117976200,0.43447648,66880.0,66879.0,0.15146504]
[1718117976416,0.36131652,66880.0,66879.0,0.15146504]
[1718117976833,0.01537052,66880.0,66879.0,0.30098804]
[1718117977702,0.01537052,66880.0,66879.0,0.29981828]
[1718117981477,1.0397445,66880.0,66879.0,0.15029528]
[1718117981689,1.14831145,66880.0,66879.0,0.003]
[1718117982939,0.2,66863.0,66858.0,0.19433366]
[1718117983144,0.2,66863.0,66859.0,0.1440215]
[1718117983358,0.2338,66866.0,66858.0,0.16724208]
[1718117983359,0.21530607,66862.0,66860.0,0.1440215]
[1718117983569,0.2,66862.0,66861.0,0.1440215]
[1718117983969,0.2,66862.0,66859.0,0.1440215]
[1718117984168,0.2,66861.0,66860.0,0.1440215]
[1718117984375,0.2,66861.0,66853.0,0.00086]
[1718117984376,0.1663,66860.0,66853.0,0.00086]
[1718117984589,0.73715996,66854.0,66853.0,0.00086]
[1718117984782,0.27215996,66854.0,66853.0,0.00086]
[1718117984997,0.41530607,66854.0,66853.0,0.00086]
[1718117985201,0.80988507,66854.0,66853.0,0.00345744]
[1718117985817,0.66030607,66854.0,66853.0,0.00345744]
[1718117986026,0.68030607,66854.0,66853.0,0.00345744]
[1718117986242,0.82988507,66854.0,66853.0,0.00345744]
[1718117987747,0.83288507,66854.0,66853.0,0.00345744]
[1718117988773,0.68330607,66854.0,66853.0,0.00345744]
[1718117989372,0.66330607,66854.0,66853.0,0.00345744]
[1718117989784,0.68330607,66854.0,66853.0,0.00345744]
[1718117990400,0.68030607,66854.0,66853.0,0.00345744]
[1718117990620,0.82988507,66854.0,66853.0,0.00345744]
[1718117991700,0.974205,66854.0,66853.0,0.00345744]